fUSD/lending_fUSD_20250415
["ID","MTS","AMOUNT","RATE_DAILY","PERIOD"]
[358109355,1744728639087,-500.0,0.00017998,2]
[358109356,1744728639097,-255.98899026,0.00017998,2]
[358109357,1744728639107,-500.0,0.00017998,2]
[358109358,1744728639117,-500.0,0.00017998,2]
[358109359,1744728639126,-500.0,0.00017998,2]
[358109360,1744728639136,-502.12748363,0.00017998,2]
[358109361,1744728639145,-500.0,0.00017998,2]
[358109362,1744728639155,-503.24136164,0.00017998,2]
[358109363,1744728639163,-500.22629589,0.00017998,2]
[358109364,1744728639173,-500.0,0.00017998,2]
[358109365,1744728639186,-500.0,0.00017998,2]
[358109366,1744728639195,-337.92127482,0.00017998,2]
[358109367,1744728639204,-500.0,0.00017998,2]
[358109368,1744728639214,-500.0,0.00017998,2]
[358109369,1744728639223,-544.58794161,0.00017998,2]
[358109370,1744728639234,-500.0,0.00017998,2]
[358109371,1744728639246,-500.0,0.00017998,2]
[358109372,1744728639256,-500.0,0.00017998,2]
[358109373,1744728639266,-503.12133546,0.00017998,2]
[358109374,1744728639276,-558.56244935,0.00017998,2]
[358109375,1744728639284,-535.92510622,0.00017998,2]
[358109376,1744728639294,-500.0,0.00017998,2]
[358109377,1744728639304,-502.74726066,0.00017998,2]
[358109378,1744728639314,-500.0,0.00017998,2]
[358109379,1744728639323,-500.0,0.00017998,2]
[358109380,1744728639332,-500.0,0.00017998,2]
[358109381,1744728639342,-500.0,0.00017998,2]
[358109382,1744728639351,-500.0,0.00017998,2]
[358109383,1744728639359,-500.0,0.00017998,2]
[358109384,1744728639368,-500.0,0.00017998,2]
[358109385,1744728639377,-540.94462221,0.00017998,2]
[358109386,1744728639386,-524.48685617,0.00017998,2]
[358109387,1744728639396,-500.0,0.00017998,2]
[358109388,1744728639406,-511.52586968,0.00017998,2]
[358109389,1744728639415,-500.0,0.00017998,2]
[358109390,1744728639424,-573.24126322,0.00017998,2]
[358109391,1744728639434,-507.32447413,0.00017998,2]
[358109392,1744728639443,-500.0,0.00017998,2]
[358109393,1744728639452,-500.0,0.00017998,2]
[358109394,1744728639461,-500.0,0.00017998,2]
[358109395,1744728639471,-500.0,0.00017998,2]
[358109396,1744728639480,-500.0,0.00017998,2]
[358109397,1744728639489,-500.0,0.00017998,2]
[358109398,1744728639498,-500.0,0.00017998,2]
[358109399,1744728639508,-500.0,0.00017998,2]
[358109400,1744728639518,-500.7346098,0.00017998,2]
[358109401,1744728639527,-500.0,0.00017998,2]
[358109402,1744728639536,-500.0,0.00017998,2]
[358109403,1744728639545,-500.0,0.00017998,2]
[358109404,1744728639554,-500.0,0.00017998,2]
[358109405,1744728639563,-500.0,0.00017998,2]
[358109406,1744728639573,-185.36748913,0.00017998,2]
[358109407,1744728639582,-500.0,0.00017998,2]
[358109408,1744728639591,-500.0,0.00017998,2]
[358109409,1744728639600,-500.0,0.00017998,2]
[358109410,1744728639610,-500.0,0.00017998,2]
[358109411,1744728639619,-500.0,0.00017998,2]
[358109412,1744728639628,-500.0,0.00017998,2]
[358109413,1744728639638,-500.0,0.00017998,2]
[358109414,1744728639647,-177.76273669,0.00017998,2]
[358109415,1744728639656,-500.0,0.00017998,2]
[358109416,1744728639665,-555.94087239,0.00017998,2]
[358109417,1744728639675,-547.52428571,0.00017998,2]
[358109418,1744728639684,-500.0,0.00017998,2]
[358109419,1744728639693,-500.0,0.00017998,2]
[358109420,1744728639703,-500.0,0.00017998,2]
[358109421,1744728639713,-608.62447741,0.00017998,2]
[358109422,1744728639722,-500.0,0.00017998,2]
[358109423,1744728639731,-559.74,0.00017998,2]
[358109424,1744728639740,-500.0,0.00017998,2]
[358109425,1744728639750,-500.0,0.00017998,2]
[358109426,1744728639759,-500.0,0.00017998,2]
[358109427,1744728639769,-500.0,0.00017998,2]
[358109428,1744728639778,-500.0,0.00017998,2]
[358109429,1744728639787,-500.0,0.00017998,2]
[358109430,1744728639796,-500.0,0.00017998,2]
[358109431,1744728639806,-500.0,0.00017998,2]
[358109432,1744728639815,-500.0,0.00017998,2]
[358109433,1744728639824,-500.0,0.00017998,2]
[358109434,1744728639833,-500.0,0.00017998,2]
[358109435,1744728639843,-500.0,0.00017998,2]
[358109436,1744728639852,-500.0,0.00017998,2]
[358109437,1744728639861,-510.29894086,0.00017998,2]
[358109438,1744728639871,-500.0,0.00017998,2]
[358109439,1744728639880,-500.0,0.00017998,2]
[358109440,1744728639889,-500.0,0.00017998,2]
[358109441,1744728639898,-500.0,0.00017998,2]
[358109442,1744728639907,-500.0,0.00017998,2]
[358109443,1744728639916,-153.13706151,0.00017998,2]
[358109444,1744728639925,-500.0,0.00017998,2]
[358109445,1744728639934,-500.0,0.00017998,2]
[358109446,1744728639944,-500.0,0.00017998,2]
[358109447,1744728639953,-500.0,0.00017998,2]
[358109448,1744728639963,-500.0,0.00017998,2]
[358109449,1744728639972,-179.70608109,0.00017998,2]
[358109450,1744728639982,-500.0,0.00017998,2]
[358109451,1744728639991,-536.68289512,0.00017998,2]
[358109452,1744728639999,-252.18114062,0.00017998,2]
[358109453,1744728640009,-500.0,0.00017998,2]
[358109454,1744728640018,-500.0,0.00017998,2]
[358109455,1744728640027,-480.53560626,0.00017998,2]
[358109456,1744728640036,-1862.0,0.00017998,2]
[358109457,1744728640045,-500.0,0.00017998,2]
[358109458,1744728640054,-322.18663544,0.00017998,2]
[358109460,1744728640064,-1242.0,0.00017998,2]
[358109461,1744728640072,-500.0,0.00017998,2]
[358109462,1744728640083,-686.65,0.00017998,2]
[358109463,1744728640092,-500.0,0.00017998,2]
[358109464,1744728640101,-500.0,0.00017998,2]
[358109465,1744728640112,-500.0,0.00017998,2]
[358109466,1744728640121,-500.0,0.00017998,2]
[358109467,1744728640130,-150.0,0.00017998,2]
[358109468,1744728640140,-500.0,0.00017998,2]
[358109469,1744728640150,-500.0,0.00017998,2]
[358109470,1744728640160,-500.0,0.00017998,2]
[358109471,1744728640169,-500.0,0.00017998,2]
[358109472,1744728640178,-500.0,0.00017998,2]
[358109474,1744728640192,-150.0,0.00017998,2]
[358109475,1744728640202,-500.0,0.00017998,2]
[358109476,1744728640211,-500.0,0.00017998,2]
[358109477,1744728640221,-150.0,0.00017998,2]
[358109478,1744728640231,-500.0,0.00017998,2]
[358109479,1744728640240,-500.0,0.00017998,2]
[358109480,1744728640249,-500.0,0.00017998,2]
[358109481,1744728640258,-500.0,0.00017998,2]
[358109482,1744728640268,-500.0,0.00017998,2]
[358109483,1744728640277,-500.0,0.00017998,2]
[358109484,1744728640287,-529.25691027,0.00017998,2]
[358109485,1744728640296,-500.0,0.00017998,2]
[358109486,1744728640305,-500.0,0.00017998,2]
[358109487,1744728640315,-500.0,0.00017998,2]
[358109488,1744728640324,-500.0,0.00017998,2]
[358109489,1744728640334,-500.0,0.00017998,2]
[358109490,1744728640343,-306.40127736,0.00017998,2]
[358109491,1744728640353,-500.0,0.00017998,2]
[358109492,1744728640363,-500.0,0.00017998,2]
[358109493,1744728640372,-500.0,0.00017998,2]
[358109494,1744728640382,-160.84,0.00017998,2]
[358109495,1744728640391,-1536.32,0.00017998,2]
[358109496,1744728640401,-500.0,0.00017998,2]
[358109497,1744728640410,-624.77809883,0.00017998,2]
[358109498,1744728640420,-500.0,0.00017998,2]
[358109499,1744728640429,-367.5112194,0.00017998,2]
[358109500,1744728640438,-500.0,0.00017998,2]
[358109501,1744728640450,-500.0,0.00017998,2]
[358109502,1744728640460,-500.0,0.00017998,2]
[358109503,1744728640470,-500.0,0.00017998,2]
[358109504,1744728640479,-241.15,0.00017998,2]
[358109505,1744728640489,-500.0,0.00017998,2]
[358109506,1744728640499,-500.0,0.00017998,2]
[358109507,1744728640507,-500.0,0.00017998,2]
[358109508,1744728640517,-500.0,0.00017998,2]
[358109509,1744728640527,-500.0,0.00017998,2]
[358109510,1744728640537,-500.0,0.00017998,2]
[358109511,1744728640546,-500.0,0.00017998,2]
[358109512,1744728640555,-500.0,0.00017998,2]
[358109513,1744728640565,-500.0,0.00017998,2]
[358109514,1744728640575,-500.0,0.00017998,2]
[358109515,1744728640584,-500.0,0.00017998,2]
[358109516,1744728640595,-150.0,0.00017998,2]
[358109517,1744728640605,-316.24995362,0.00017998,2]
[358109518,1744728640615,-500.0,0.00017998,2]
[358109519,1744728640624,-500.0,0.00017998,2]
[358109520,1744728640634,-500.0,0.00017998,2]
[358109521,1744728640643,-500.0,0.00017998,2]
[358109522,1744728640653,-500.0,0.00017998,2]
[358109523,1744728640662,-500.0,0.00017998,2]
[358109524,1744728640672,-500.0,0.00017998,2]
[358109525,1744728640681,-500.0,0.00017998,2]
[358109526,1744728640691,-500.0,0.00017998,2]
[358109527,1744728640700,-500.0,0.00017998,2]
[358109528,1744728640710,-500.0,0.00017998,2]
[358109529,1744728640719,-500.0,0.00017998,2]
[358109530,1744728640729,-178.61136733,0.00017998,2]
[358109531,1744728640738,-500.0,0.00017998,2]
[358109532,1744728640748,-500.0,0.00017998,2]
[358109533,1744728640758,-500.0,0.00017998,2]
[358109534,1744728640767,-500.0,0.00017998,2]
[358109535,1744728640777,-500.0,0.00017998,2]
[358109536,1744728640786,-500.0,0.00017998,2]
[358109537,1744728640796,-200.0,0.00017999,2]
[358109538,1744728640806,-530.06932245,0.00017999,2]
[358109539,1744728640815,-500.0,0.00017999,2]
[358109541,1744728640833,-550.29909938,0.00017999,2]
[358109542,1744728640845,-176.90117586,0.00017999,2]
[358109543,1744728640855,-500.0,0.00017999,2]
[358109544,1744728640865,-500.0,0.00017999,2]
[358109545,1744728640876,-200.0,0.00017999,2]
[358109546,1744728640886,-500.0,0.00017999,2]
[358109547,1744728640896,-500.0,0.00017999,2]
[358109548,1744728640905,-373.19905698,0.00017999,2]
[358109549,1744728640915,-500.0,0.00017999,2]
[358109550,1744728640926,-500.0,0.00017999,2]
[358109551,1744728640936,-500.0,0.00017999,2]
[358109552,1744728640946,-500.0,0.00017999,2]
[358109553,1744728640956,-500.0,0.00017999,2]
[358109554,1744728640966,-594.93,0.00017999,2]
[358109555,1744728640976,-500.0,0.00017999,2]
[358109556,1744728640986,-500.0,0.00017999,2]
[358109557,1744728640995,-500.0,0.00017999,2]
[358109558,1744728641005,-500.0,0.00017999,2]
[358109559,1744728641015,-500.0,0.00017999,2]
[358109560,1744728641025,-500.0,0.00017999,2]
[358109561,1744728641034,-500.0,0.00017999,2]
[358109562,1744728641044,-500.0,0.00017999,2]
[358109563,1744728641060,-500.0,0.00017999,2]
[358109564,1744728641070,-500.0,0.00017999,2]
[358109565,1744728641080,-500.0,0.00017999,2]
[358109566,1744728641090,-500.0,0.00017999,2]
[358109567,1744728641100,-500.0,0.00017999,2]
[358109568,1744728641110,-1000.0,0.00017999,2]
[358109569,1744728641120,-500.0,0.00017999,2]
[358109570,1744728641130,-500.0,0.00017999,2]
[358109571,1744728641140,-496.45,0.00017999,2]
[358109572,1744728641150,-500.0,0.00017999,2]
[358109573,1744728641159,-500.0,0.00017999,2]
[358109574,1744728641170,-500.0,0.00017999,2]
[358109575,1744728641179,-500.0,0.00017999,2]
[358109576,1744728641193,-500.0,0.00017999,2]
[358109577,1744728641204,-500.0,0.00017999,2]
[358109578,1744728641214,-531.89,0.00017999,2]
[358109579,1744728641224,-686.65,0.00017999,2]
[358109580,1744728641234,-686.65,0.00017999,2]
[358109581,1744728641243,-686.65,0.00017999,2]
[358109582,1744728641252,-686.65,0.00017999,2]
[358109583,1744728641264,-686.65,0.00017999,2]
[358109584,1744728641274,-686.65,0.00017999,2]
[358109585,1744728641284,-686.65,0.00017999,2]
[358109586,1744728641293,-686.65,0.00017999,2]
[358109587,1744728641303,-686.65,0.00017999,2]
[358109588,1744728641313,-686.65,0.00017999,2]
[358109589,1744728641323,-686.65,0.00017999,2]
[358109590,1744728641333,-686.65,0.00017999,2]
[358109591,1744728641342,-686.65,0.00017999,2]
[358109592,1744728641352,-686.65,0.00017999,2]
[358109593,1744728641362,-686.65,0.00017999,2]
[358109594,1744728641372,-686.65,0.00017999,2]
[358109595,1744728641382,-686.65,0.00017999,2]
[358109596,1744728641392,-686.65,0.00017999,2]
[358109597,1744728641402,-686.65,0.00017999,2]
[358109598,1744728641412,-686.65,0.00017999,2]
[358109599,1744728641421,-686.65,0.00017999,2]
[358109600,1744728641431,-686.65,0.00017999,2]
[358109601,1744728641443,-340.00506889,0.00017999,2]
[358109602,1744728641463,-346.65885087,0.00017999,2]
[358109603,1744728641472,-500.0,0.00017999,2]
[358109604,1744728641482,-500.0,0.00017999,2]
[358109605,1744728641492,-277.44114919,0.00017999,2]
[358109606,1744728641504,-222.55885081,0.00017999,2]
[358109607,1744728641513,-53.15376205,0.00017999,2]
[358109608,1744728641738,-446.84623795,0.00017999,2]
[358109609,1744728641748,-586.04063651,0.00017999,2]
[358109610,1744728641757,-500.0,0.00017999,2]
[358109611,1744728641767,-500.0,0.00017999,2]
[358109612,1744728641777,-500.0,0.00017999,2]
[358109613,1744728641786,-1536.32,0.00017999,2]
[358109614,1744728641796,-1536.32,0.00017999,2]
[358109615,1744728641805,-1536.32,0.00017999,2]
[358109616,1744728641814,-1536.32,0.00017999,2]
[358109617,1744728641825,-1536.32,0.00017999,2]
[358109618,1744728641835,-1536.32,0.00017999,2]
[358109619,1744728641844,-1536.32,0.00017999,2]
[358109620,1744728641854,-1536.32,0.00017999,2]
[358109621,1744728641864,-1536.32,0.00017999,2]
[358109622,1744728641873,-1536.32,0.00017999,2]
[358109623,1744728641882,-1536.32,0.00017999,2]
[358109624,1744728641892,-1536.32,0.00017999,2]
[358109625,1744728641901,-1536.32,0.00017999,2]
[358109626,1744728641910,-1536.32,0.00017999,2]
[358109627,1744728641919,-1536.32,0.00017999,2]
[358109628,1744728641929,-1536.32,0.00017999,2]
[358109629,1744728641939,-261.98649833,0.00017999,2]
[358109630,1744728641956,-1274.33350167,0.00017999,2]
[358109631,1744728641965,-852.51714813,0.00017999,2]
[358109649,1744728644969,-683.80285187,0.00017999,2]
[358109650,1744728644978,-1536.32,0.00017999,2]
[358109651,1744728644988,-1536.32,0.00017999,2]
[358109652,1744728644998,-1536.32,0.00017999,2]
[358109653,1744728645007,-1536.32,0.00017999,2]
[358109654,1744728645017,-1536.52733949,0.00017999,2]
[358109655,1744728645027,-300.931,0.00017999,2]
[358109656,1744728645036,-500.0,0.00017999,2]
[358109657,1744728645047,-500.0,0.00017999,2]
[358109658,1744728645056,-500.0,0.00017999,2]
[358109659,1744728645066,-500.0,0.00017999,2]
[358109660,1744728645075,-500.0,0.00017999,2]
[358109661,1744728645084,-500.0,0.00017999,2]
[358109662,1744728645094,-500.0,0.00017999,2]
[358109663,1744728645103,-500.0,0.00017999,2]
[358109664,1744728645113,-500.0,0.00017999,2]
[358109665,1744728645122,-500.0,0.00017999,2]
[358109666,1744728645131,-500.0,0.00017999,2]
[358109667,1744728645141,-548.40695254,0.00017999,2]
[358109668,1744728645151,-531.398914,0.00017999,2]
[358109669,1744728645160,-500.0,0.00017999,2]
[358109670,1744728645170,-500.0,0.00017999,2]
[358109671,1744728645179,-500.0,0.00017999,2]
[358109672,1744728645191,-500.0,0.00017999,2]
[358109673,1744728645200,-500.0,0.00017999,2]
[358109674,1744728645210,-500.0,0.00017999,2]
[358109675,1744728645219,-500.0,0.00017999,2]
[358109676,1744728645230,-500.0,0.00017999,2]
[358109677,1744728645239,-259.2,0.00017999,2]
[358109678,1744728645248,-500.0,0.00017999,2]
[358109679,1744728645258,-500.0,0.00017999,2]
[358109680,1744728645268,-500.0,0.00017999,2]
[358109681,1744728645281,-500.0,0.00017999,2]
[358109682,1744728645291,-500.0,0.00017999,2]
[358109683,1744728645301,-1262.0,0.00018,2]
[358109684,1744728645311,-467.63516133,0.00018,2]
[358109685,1744728645320,-401036.7180141,0.00018,2]
[358109686,1744728645337,-85057.992101,0.00018,2]
[358109687,1744728645348,-1373.50075121,0.00018,2]
[358109688,1744728645439,954.61,0.0001581,2]
[358109692,1744728646309,-304.32,0.00018,2]
[358109693,1744728646320,-378719.96077875,0.00018,2]
[358109694,1744728646437,-402.19721993,0.00018,2]
[358109699,1744728791795,458.28,0.0001705,2]
[358109700,1744728834544,774.16,0.00017187,2]
[358109701,1744728861184,7129.7,0.00017236,2]
[358109703,1744728905158,200.0,0.00017236,2]
[358109704,1744729053695,164.32,0.0001705,2]
[358109705,1744729067663,267.11,0.000265,120]
[358109706,1744729072845,-182.61644731,0.00017799,2]
[358109708,1744729204579,1500.0,0.00025,30]
[358109709,1744729303283,250.0,0.0001705,2]
[358109710,1744729335570,184.59,0.00017457,2]
[358109719,1744729394763,250.0,0.00016909,2]
[358109721,1744729502417,191.57,0.00016909,2]
[358109722,1744729511381,992.47,0.0001705,2]
[358109723,1744729558092,263.96259549,5e-05,2]
[358109724,1744729562103,1000.0,0.00016909,2]
[358109729,1744729729070,211.18,0.00016939,2]
[358109730,1744729788080,229.14,0.00016914,2]
[358109731,1744729802893,322.08468913,0.000265,120]
[358109733,1744729832326,-169.35,0.000177,2]
[358109734,1744729832336,-269.00720647,0.00017732,2]
[358109735,1744729832345,-269.00720642,0.00017732,2]
[358109736,1744729832355,-227.6769,0.00017786,2]
[358109737,1744729832364,-163.6865201,0.0001782,2]
[358109738,1744729832374,-300.0,0.00017831,2]
[358109739,1744729832383,-300.0,0.00017831,2]
[358109740,1744729832393,-1101.6462411,0.00017832,2]
[358109741,1744729832412,-3093.5937589,0.00017832,2]
[358109742,1744729832421,-3043.64335103,0.00017832,2]
[358109743,1744729832738,-798.32798818,0.00017832,2]
[358109770,1744729838572,-261.92,0.00017832,2]
[358109771,1744729838632,-2794.87247323,0.00017832,2]
[358109772,1744729838688,-1620.20000006,0.00017832,2]
[358109773,1744729838746,-570.13742456,0.00017832,2]
[358109774,1744729838758,-910.88876294,0.00017832,2]
[358109775,1744729838768,-150.99,0.00017832,2]
[358109776,1744729838778,-556.57,0.00017832,2]
[358109777,1744729838787,-150.99,0.00017832,2]
[358109778,1744729838798,-499.99,0.00017832,2]
[358109779,1744729838807,-343.29123898,0.00017832,2]
[358109780,1744729838819,-4284.90003856,0.00017832,2]
[358109781,1744729838831,-4608.10872246,0.00017832,2]
[358109782,1744729838841,-485.17,0.00017836,2]
[358109784,1744729838850,-200.0,0.00017856,2]
[358109785,1744729838860,-500.0,0.00017899,2]
[358109786,1744729838869,-515.54122011,0.00017899,2]
[358109787,1744729838879,-515.54122005,0.00017899,2]
[358109788,1744729838888,-515.54122005,0.00017899,2]
[358109789,1744729838899,-515.54122005,0.00017899,2]
[358109790,1744729838909,-515.54122005,0.00017899,2]
[358109791,1744729838918,-515.54122005,0.000179,2]
[358109792,1744729838928,-515.54122005,0.000179,2]
[358109793,1744729838937,-515.54122005,0.000179,2]
[358109794,1744729838946,-515.54122005,0.000179,2]
[358109795,1744729838957,-5635.0293,0.000179,2]
[358109796,1744729838966,-182.5887,0.000179,2]
[358109797,1744729838978,-1000.0,0.000179,2]
[358109798,1744729838988,-286.57649703,0.000179,2]
[358109799,1744729839004,-1523.74880297,0.000179,2]
[358109800,1744729839015,-1254.9612,0.000179,2]
[358109801,1744729839026,-177.84596547,0.000179,2]
[358109802,1744729839035,-2434.12808253,0.000179,2]
[358109803,1744729839047,-892.581,0.000179,2]
[358109808,1744729840701,-8527.40960001,0.000179,2]
[358109809,1744729840775,-341.86579367,0.000179,2]
[358109810,1744729840998,-49.64698492,0.000179,2]
[358109811,1744729841008,-163.37199918,0.000179,2]
[358109812,1744729841020,-109.7024434,0.000179,2]
[358109813,1744729841099,-405.83877665,0.000179,2]
[358109814,1744729841109,-997.9179,0.000179,2]
[358109815,1744729841119,-500.0,0.00017973,2]
[358109816,1744729841128,-1262.1265235,0.00017986,2]
[358109817,1744729841137,-494.7936677,0.00017986,2]
[358109818,1744729841146,-14711.2640145,0.00017986,2]
[358109819,1744729841156,-1484.72636,0.00017988,2]
[358109820,1744729841166,-584.04606,0.00017988,2]
[358109821,1744729841175,-13020.9890614,0.00017988,2]
[358109822,1744729841185,-668.65185757,0.00017989,2]
[358109823,1744729841194,-207.4,0.00017989,2]
[358109824,1744729841203,-500.0,0.00017998,2]
[358109825,1744729841213,-1120.166,0.00017998,2]
[358109826,1744729841223,-500.0,0.00017998,2]
[358109827,1744729841233,-374.25295812,0.00017998,2]
[358109828,1744729841242,-506.20642819,0.00017998,2]
[358109829,1744729841252,-500.0,0.00017998,2]
[358109830,1744729841262,-294.14743454,0.00017998,2]
[358109831,1744729841276,-502.80725947,0.00017998,2]
[358109832,1744729841286,-500.0,0.00017998,2]
[358109833,1744729841295,-531.89,0.00017998,2]
[358109834,1744729841304,-526.61266855,0.00017998,2]
[358109835,1744729841314,-511.18455924,0.00017998,2]
[358109836,1744729841323,-500.0,0.00017998,2]
[358109837,1744729841332,-500.0,0.00017998,2]
[358109838,1744729841342,-500.0,0.00017998,2]
[358109839,1744729841351,-500.0,0.00017998,2]
[358109840,1744729841361,-373.19905698,0.00017998,2]
[358109841,1744729841371,-500.0,0.00017998,2]
[358109842,1744729841381,-504.2319828,0.00017998,2]
[358109843,1744729841391,-505.01442583,0.00017998,2]
[358109844,1744729841402,-500.0,0.00017998,2]
[358109845,1744729841412,-500.0,0.00017998,2]
[358109846,1744729841422,-500.0,0.00017998,2]
[358109847,1744729841433,-500.0,0.00017998,2]
[358109848,1744729841442,-500.0,0.00017998,2]
[358109849,1744729841452,-500.0,0.00017998,2]
[358109850,1744729841462,-500.0,0.00017998,2]
[358109851,1744729841472,-500.0,0.00017998,2]
[358109852,1744729841481,-500.0,0.00017998,2]
[358109853,1744729841491,-500.0,0.00017998,2]
[358109854,1744729841501,-500.0,0.00017998,2]
[358109855,1744729841510,-588.93488027,0.00017998,2]
[358109856,1744729841521,-500.0,0.00017998,2]
[358109857,1744729841530,-501.6252658,0.00017998,2]
[358109858,1744729841540,-500.0,0.00017998,2]
[358109859,1744729841551,-500.0,0.00017998,2]
[358109860,1744729841561,-500.0,0.00017998,2]
[358109861,1744729841573,-500.0,0.00017998,2]
[358109862,1744729841583,-523.35333491,0.00017998,2]
[358109863,1744729841593,-478.66040653,0.00017998,2]
[358109864,1744729841603,-500.0,0.00017998,2]
[358109865,1744729841614,-500.0,0.00017998,2]
[358109866,1744729841623,-500.0,0.00017998,2]
[358109867,1744729841633,-500.0,0.00017998,2]
[358109868,1744729841643,-511.14282488,0.00017998,2]
[358109869,1744729841653,-168.2236999,0.00017998,2]
[358109870,1744729841663,-500.0,0.00017998,2]
[358109871,1744729841673,-503.39149744,0.00017998,2]
[358109872,1744729841683,-500.0,0.00017998,2]
[358109873,1744729841692,-500.0,0.00017998,2]
[358109874,1744729841701,-500.0,0.00017998,2]
[358109875,1744729841710,-500.0,0.00017998,2]
[358109876,1744729841720,-500.0,0.00017998,2]
[358109877,1744729841729,-567.4,0.00017998,2]
[358109878,1744729841739,-313.2493955,0.00017998,2]
[358109879,1744729841749,-500.0,0.00017998,2]
[358109880,1744729841758,-500.0,0.00017998,2]
[358109881,1744729841769,-500.0,0.00017998,2]
[358109882,1744729841778,-500.0,0.00017998,2]
[358109883,1744729841787,-500.0,0.00017998,2]
[358109884,1744729841797,-500.0,0.00017998,2]
[358109885,1744729841807,-500.0,0.00017998,2]
[358109886,1744729841817,-562.60725412,0.00017998,2]
[358109887,1744729841827,-530.06932245,0.00017998,2]
[358109888,1744729841836,-309.72573638,0.00017998,2]
[358109889,1744729841846,-500.0,0.00017998,2]
[358109890,1744729841856,-500.0,0.00017998,2]
[358109891,1744729841865,-282.73717381,0.00017998,2]
[358109892,1744729841874,-500.0,0.00017998,2]
[358109893,1744729841884,-500.0,0.00017998,2]
[358109894,1744729841894,-500.0,0.00017998,2]
[358109895,1744729841903,-541.2737918,0.00017998,2]
[358109896,1744729841914,-500.0,0.00017998,2]
[358109897,1744729841924,-550.29909938,0.00017998,2]
[358109898,1744729841934,-500.0,0.00017998,2]
[358109899,1744729841944,-500.0,0.00017998,2]
[358109900,1744729841954,-176.90117586,0.00017998,2]
[358109901,1744729841964,-500.0,0.00017998,2]
[358109902,1744729841974,-1000.0,0.00017998,2]
[358109903,1744729841984,-500.0,0.00017998,2]
[358109904,1744729841994,-1863.0,0.00017998,2]
[358109905,1744729842003,-500.0,0.00017998,2]
[358109906,1744729842013,-150.0,0.00017998,2]
[358109907,1744729842027,-150.0,0.00017998,2]
[358109908,1744729842037,-1244.0,0.00017998,2]
[358109909,1744729842047,-500.0,0.00017998,2]
[358109910,1744729842056,-119.04788059,0.00017998,2]
[358109911,1744729842070,-380.95211941,0.00017998,2]
[358109912,1744729842080,-500.0,0.00017998,2]
[358109913,1744729842090,-193.40514531,0.00017998,2]
[358109914,1744729842101,-150.0,0.00017998,2]
[358109915,1744729842111,-500.0,0.00017998,2]
[358109916,1744729842121,-150.0,0.00017998,2]
[358109917,1744729842131,-150.0,0.00017998,2]
[358109918,1744729842140,-500.0,0.00017998,2]
[358109919,1744729842150,-500.0,0.00017998,2]
[358109920,1744729842159,-167.035503,0.00017998,2]
[358109943,1744729846394,-269.00720642,0.00017732,2]
[358109944,1744729846404,-74.114497,0.00017998,2]
[358109945,1744729846414,-500.0,0.00017998,2]
[358109946,1744729846423,-500.0,0.00017998,2]
[358109947,1744729846433,-500.0,0.00017998,2]
[358109948,1744729846442,-500.0,0.00017998,2]
[358109949,1744729846451,-500.0,0.00017998,2]
[358109950,1744729846461,-150.0,0.00017998,2]